[Event "Titled Tuesday Blitz April 19 Late 2022"]
[White "Ibarra Jerez, Jose Carlos"]
[Black "Andreikin, Dmitry"]
[WhiteFideId "2226332"]
[BlackFideId "4158814"]
[WhiteElo "2626"]
[BlackElo "2736"]
[Result "0-1"]
[Round "05"]
[TimeControl "180+1"]
[Date "2022.04.19"]
[WhiteClock "0:00:03"]
[BlackClock "0:00:10"]

1. e4 {[%clk 0:03:00]}  c5 {[%clk 0:03:00]} 2. Nc3 {[%clk 0:03:00]}  a6 {[%clk 0:02:59]} 3. g4 {[%clk 0:02:59]}  b5 {[%clk 0:02:56]} 4. Bg2 {[%clk 0:02:59]}  Bb7 {[%clk 0:02:57]} 5. d3 {[%clk 0:03:00]}  e6 {[%clk 0:02:56]} 6. Nh3 {[%clk 0:03:01]}  Ne7 {[%clk 0:02:44]} 7. O-O {[%clk 0:02:56]}  Ng6 {[%clk 0:02:44]} 8. f4 {[%clk 0:02:56]}  Nh4 {[%clk 0:02:44]} 9. Bh1 {[%clk 0:02:57]}  Nc6 {[%clk 0:02:40]} 10. g5 {[%clk 0:02:54]}  Nd4 {[%clk 0:02:37]} 11. Rf2 {[%clk 0:02:47]}  h6 {[%clk 0:02:34]} 12. gxh6 {[%clk 0:02:03]}  Rxh6 {[%clk 0:02:24]} 13. f5 {[%clk 0:02:03]}  Rh8 {[%clk 0:02:17]} 14. Qg4 {[%clk 0:02:03]}  b4 {[%clk 0:02:07]} 15. Bg5 {[%clk 0:02:00]}  Be7 {[%clk 0:02:06]} 16. Na4 {[%clk 0:01:55]}  Bxg5 {[%clk 0:01:34]} 17. Nxg5 {[%clk 0:01:55]}  exf5 {[%clk 0:00:57]} 18. exf5 {[%clk 0:01:53]}  Bxh1 {[%clk 0:00:56]} 19. Re1+ {[%clk 0:01:34]}  Kf8 {[%clk 0:00:56]} 20. Kxh1 {[%clk 0:01:29]}  Rc8 {[%clk 0:00:55]} 21. Ne4 {[%clk 0:01:11]}  Rc6 {[%clk 0:00:44]} 22. Nexc5 {[%clk 0:01:01]}  Rch6 {[%clk 0:00:42]} 23. Qxd4 {[%clk 0:00:55]}  Nf3 {[%clk 0:00:42]} 24. Nxd7+ {[%clk 0:00:11]}  Qxd7 {[%clk 0:00:40]} 25. Qxb4+ {[%clk 0:00:11]}  Kg8 {[%clk 0:00:38]} 26. Rxf3 {[%clk 0:00:08]}  Rxh2+ {[%clk 0:00:37]} 27. Kg1 {[%clk 0:00:09]}  Rh1+ {[%clk 0:00:26]} 28. Kf2 {[%clk 0:00:10]}  R8h2+ {[%clk 0:00:22]} 29. Kg3 {[%clk 0:00:10]}  Rh3+ {[%clk 0:00:20]} 30. Kg2 {[%clk 0:00:09]}  R3h2+ {[%clk 0:00:14]} 31. Kg3 {[%clk 0:00:10]}  Rh3+ {[%clk 0:00:13]} 32. Kg2 {[%clk 0:00:10]}  Qc6 {[%clk 0:00:10]} 33. Qb8+ {[%clk 0:00:08]}  Kh7 {[%clk 0:00:10]} 34. Re4 {[%clk 0:00:07]}  Qxc2+ {[%clk 0:00:09]} 35. Rf2 {[%clk 0:00:03]}  R1h2+ {[%clk 0:00:09]} 36. Qxh2 {[%clk 0:00:03]}  Rxh2+ {[%clk 0:00:10]} 37. Kxh2 {[%clk 0:00:04]}  Qxf2+ {[%clk 0:00:11]} 38. Kh3 {[%clk 0:00:04]}  Qxf5+ {[%clk 0:00:10]} 39. Kg3 {[%clk 0:00:03]}  g5 {[%clk 0:00:10]} 40. Nc3 {[%clk 0:00:03]}  Qf1 {[%clk 0:00:09]} 41. Ne2 {[%clk 0:00:02]}  f5 {[%clk 0:00:09]} 42. Re7+ {[%clk 0:00:03]}  Kg6 {[%clk 0:00:09]} 43. Re6+ {[%clk 0:00:02]}  Kf7 {[%clk 0:00:10]} 44. Re5 {[%clk 0:00:03]}  Kf6 {[%clk 0:00:10]} 45. d4 {[%clk 0:00:03]}  f4+ {[%clk 0:00:10]} 46. Kg4 {[%clk 0:00:03]}  Qg2+ {[%clk 0:00:10]} 0-1


[Site "https://www.chess.com"]

[Event "Titled Tuesday Blitz April 19 Late 2022"]
[White "Indjic, Aleksandar"]
[Black "Barrientos, Sergio E"]
[WhiteFideId "911925"]
[BlackFideId "4401824"]
[WhiteElo "2616"]
[BlackElo "2397"]
[Result "0-1"]
[Round "05"]
[TimeControl "180+1"]
[Date "2022.04.19"]
[WhiteClock "0:00:01"]
[BlackClock "0:00:09"]

1. d4 {[%clk 0:03:00]}  Nf6 {[%clk 0:02:58]} 2. c4 {[%clk 0:02:58]}  c5 {[%clk 0:02:56]} 3. d5 {[%clk 0:02:56]}  b5 {[%clk 0:02:56]} 4. Bg5 {[%clk 0:02:55]}  Ne4 {[%clk 0:02:50]} 5. Bf4 {[%clk 0:02:55]}  bxc4 {[%clk 0:02:45]} 6. f3 {[%clk 0:02:55]}  Nf6 {[%clk 0:02:42]} 7. e4 {[%clk 0:02:51]}  e6 {[%clk 0:02:42]} 8. Nc3 {[%clk 0:02:49]}  Bb7 {[%clk 0:02:11]} 9. Bxc4 {[%clk 0:02:44]}  exd5 {[%clk 0:02:11]} 10. exd5 {[%clk 0:02:43]}  d6 {[%clk 0:02:11]} 11. Qb3 {[%clk 0:02:38]}  Qb6 {[%clk 0:02:02]} 12. Qa4+ {[%clk 0:02:27]}  Nbd7 {[%clk 0:01:59]} 13. O-O-O {[%clk 0:02:27]}  Be7 {[%clk 0:01:53]} 14. Re1 {[%clk 0:02:24]}  Kf8 {[%clk 0:01:41]} 15. a3 {[%clk 0:02:07]}  Ne5 {[%clk 0:01:32]} 16. Bxe5 {[%clk 0:01:56]}  dxe5 {[%clk 0:01:32]} 17. Rxe5 {[%clk 0:01:56]}  Bd6 {[%clk 0:01:31]} 18. Re1 {[%clk 0:01:55]}  Rb8 {[%clk 0:01:28]} 19. Qc2 {[%clk 0:01:52]}  Bc8 {[%clk 0:01:23]} 20. Nge2 {[%clk 0:01:30]}  g6 {[%clk 0:01:10]} 21. g4 {[%clk 0:01:12]}  h5 {[%clk 0:01:09]} 22. h3 {[%clk 0:01:11]}  Kg7 {[%clk 0:00:52]} 23. g5 {[%clk 0:01:11]}  Nd7 {[%clk 0:00:48]} 24. Ne4 {[%clk 0:01:11]}  Be5 {[%clk 0:00:45]} 25. N2c3 {[%clk 0:01:06]}  Bf4+ {[%clk 0:00:44]} 26. Kb1 {[%clk 0:01:05]}  Ne5 {[%clk 0:00:45]} 27. Na4 {[%clk 0:00:54]}  Qa5 {[%clk 0:00:40]} 28. Nexc5 {[%clk 0:00:28]}  Bf5 {[%clk 0:00:39]} 29. Re4 {[%clk 0:00:28]}  Bxe4 {[%clk 0:00:24]} 30. Qxe4 {[%clk 0:00:26]}  Nxc4 {[%clk 0:00:20]} 31. Qxf4 {[%clk 0:00:26]}  Nxa3+ {[%clk 0:00:20]} 32. Ka2 {[%clk 0:00:24]}  Nc2 {[%clk 0:00:18]} 33. Qf6+ {[%clk 0:00:20]}  Kg8 {[%clk 0:00:19]} 34. d6 {[%clk 0:00:17]}  Nb4+ {[%clk 0:00:17]} 35. Kb1 {[%clk 0:00:16]}  Nd3 {[%clk 0:00:18]} 36. d7 {[%clk 0:00:09]}  Nxc5 {[%clk 0:00:18]} 37. Nxc5 {[%clk 0:00:09]}  Qxc5 {[%clk 0:00:18]} 38. d8=Q+ {[%clk 0:00:09]}  Rxd8 {[%clk 0:00:19]} 39. Qxd8+ {[%clk 0:00:10]}  Kh7 {[%clk 0:00:19]} 40. Qf6 {[%clk 0:00:11]}  Qd5 {[%clk 0:00:17]} 41. Rc1 {[%clk 0:00:07]}  Re8 {[%clk 0:00:16]} 42. Qc3 {[%clk 0:00:06]}  Re2 {[%clk 0:00:15]} 43. Qc4 {[%clk 0:00:06]}  Qf5+ {[%clk 0:00:15]} 44. Ka2 {[%clk 0:00:06]}  Re5 {[%clk 0:00:15]} 45. f4 {[%clk 0:00:05]}  Ra5+ {[%clk 0:00:15]} 46. Kb3 {[%clk 0:00:06]}  Rb5+ {[%clk 0:00:15]} 47. Ka4 {[%clk 0:00:06]}  a6 {[%clk 0:00:16]} 48. b4 {[%clk 0:00:06]}  Qd7 {[%clk 0:00:15]} 49. Qc6 {[%clk 0:00:05]}  Qd2 {[%clk 0:00:13]} 50. Qc4 {[%clk 0:00:05]}  Rxb4+ {[%clk 0:00:11]} 51. Qxb4 {[%clk 0:00:05]}  Qxc1 {[%clk 0:00:12]} 52. Ka5 {[%clk 0:00:05]}  Qc6 {[%clk 0:00:12]} 53. h4 {[%clk 0:00:03]}  Kg8 {[%clk 0:00:11]} 54. Qb8+ {[%clk 0:00:03]}  Kh7 {[%clk 0:00:12]} 55. Qe5 {[%clk 0:00:03]}  Kg8 {[%clk 0:00:10]} 56. Kb4 {[%clk 0:00:03]}  Kf8 {[%clk 0:00:09]} 57. Qb8+ {[%clk 0:00:03]}  Ke7 {[%clk 0:00:09]} 58. Qa7+ {[%clk 0:00:03]}  Ke6 {[%clk 0:00:10]} 59. Qe3+ {[%clk 0:00:03]}  Kf5 {[%clk 0:00:09]} 60. Qe5+ {[%clk 0:00:02]}  Kg4 {[%clk 0:00:10]} 61. Ka3 {[%clk 0:00:01]}  Qe6 {[%clk 0:00:09]} 0-1


[Site "https://www.chess.com"]

[Event "Titled Tuesday Blitz April 19 Late 2022"]
[White "Jacobson, Brandon"]
[Black "Martinez Alcantara, Jose Eduardo"]
[WhiteFideId "30901561"]
[BlackFideId "3805662"]
[WhiteElo "2362"]
[BlackElo "2690"]
[Result "1/2-1/2"]
[Round "05"]
[TimeControl "180+1"]
[Date "2022.04.19"]
[WhiteClock "0:00:06"]
[BlackClock "0:00:03"]

1. Nf3 {[%clk 0:03:00]}  c5 {[%clk 0:02:59]} 2. c4 {[%clk 0:03:00]}  Nc6 {[%clk 0:03:00]} 3. Nc3 {[%clk 0:03:01]}  g6 {[%clk 0:03:01]} 4. e3 {[%clk 0:03:01]}  Bg7 {[%clk 0:03:01]} 5. d4 {[%clk 0:03:01]}  d6 {[%clk 0:03:02]} 6. Be2 {[%clk 0:02:57]}  e6 {[%clk 0:03:02]} 7. d5 {[%clk 0:02:49]}  exd5 {[%clk 0:03:00]} 8. Nxd5 {[%clk 0:02:43]}  Nge7 {[%clk 0:02:58]} 9. O-O {[%clk 0:02:42]}  O-O {[%clk 0:02:53]} 10. e4 {[%clk 0:02:14]}  Nxd5 {[%clk 0:02:53]} 11. cxd5 {[%clk 0:02:10]}  Nd4 {[%clk 0:02:49]} 12. Nxd4 {[%clk 0:02:01]}  Bxd4 {[%clk 0:02:50]} 13. Qc2 {[%clk 0:01:59]}  f5 {[%clk 0:02:45]} 14. Be3 {[%clk 0:01:40]}  Bxe3 {[%clk 0:02:37]} 15. fxe3 {[%clk 0:01:40]}  Qe7 {[%clk 0:02:30]} 16. Bd3 {[%clk 0:01:36]}  fxe4 {[%clk 0:02:26]} 17. Rxf8+ {[%clk 0:01:34]}  Qxf8 {[%clk 0:02:21]} 18. Bxe4 {[%clk 0:01:34]}  Qg7 {[%clk 0:02:19]} 19. Bf3 {[%clk 0:01:28]}  Bd7 {[%clk 0:02:16]} 20. Rb1 {[%clk 0:01:20]}  a5 {[%clk 0:02:11]} 21. Qd2 {[%clk 0:01:12]}  b5 {[%clk 0:01:45]} 22. e4 {[%clk 0:01:08]}  b4 {[%clk 0:01:38]} 23. Qf4 {[%clk 0:01:04]}  Qe7 {[%clk 0:01:38]} 24. Re1 {[%clk 0:00:44]}  Rf8 {[%clk 0:01:36]} 25. Qg3 {[%clk 0:00:45]}  Re8 {[%clk 0:01:31]} 26. Bg4 {[%clk 0:00:29]}  Bxg4 {[%clk 0:01:25]} 27. Qxg4 {[%clk 0:00:30]}  Qe5 {[%clk 0:01:23]} 28. Qe2 {[%clk 0:00:28]}  Rf8 {[%clk 0:01:17]} 29. b3 {[%clk 0:00:23]}  Kg7 {[%clk 0:01:07]} 30. h3 {[%clk 0:00:21]}  h5 {[%clk 0:01:05]} 31. Qd3 {[%clk 0:00:16]}  Rf4 {[%clk 0:00:55]} 32. Re2 {[%clk 0:00:16]}  g5 {[%clk 0:00:54]} 33. Re1 {[%clk 0:00:15]}  Kh6 {[%clk 0:00:52]} 34. Qa6 {[%clk 0:00:11]}  g4 {[%clk 0:00:48]} 35. hxg4 {[%clk 0:00:12]}  Rxg4 {[%clk 0:00:47]} 36. Qd3 {[%clk 0:00:06]}  Kg6 {[%clk 0:00:37]} 37. Re2 {[%clk 0:00:06]}  Qa1+ {[%clk 0:00:31]} 38. Kh2 {[%clk 0:00:07]}  Rh4+ {[%clk 0:00:23]} 39. Kg3 {[%clk 0:00:07]}  Qe5+ {[%clk 0:00:24]} 40. Kf2 {[%clk 0:00:04]}  Rg4 {[%clk 0:00:20]} 41. Kg1 {[%clk 0:00:03]}  h4 {[%clk 0:00:21]} 42. Qh3 {[%clk 0:00:03]}  Kh5 {[%clk 0:00:18]} 43. Qf3 {[%clk 0:00:03]}  Qf4 {[%clk 0:00:04]} 44. Qxf4 {[%clk 0:00:03]}  Rxf4 {[%clk 0:00:05]} 45. e5 {[%clk 0:00:04]}  dxe5 {[%clk 0:00:06]} 46. Rxe5+ {[%clk 0:00:05]}  Kg4 {[%clk 0:00:06]} 47. d6 {[%clk 0:00:05]}  Rd4 {[%clk 0:00:06]} 48. Rxc5 {[%clk 0:00:05]}  Rxd6 {[%clk 0:00:05]} 49. Rxa5 {[%clk 0:00:05]}  Rd1+ {[%clk 0:00:04]} 50. Kh2 {[%clk 0:00:06]}  Rd2 {[%clk 0:00:03]} 1/2-1/2


[Site "https://www.chess.com"]

[Event "Titled Tuesday Blitz April 19 Late 2022"]
[White "Janturin, Artur"]
[Black "Romanchuk, Viktor"]
[WhiteFideId "4130022"]
[BlackFideId "14109271"]
[WhiteElo "2379"]
[BlackElo "2242"]
[Result "1/2-1/2"]
[Round "05"]
[TimeControl "180+1"]
[Date "2022.04.19"]
[WhiteClock "0:00:14"]
[BlackClock "0:00:19"]

1. b3 {[%clk 0:03:00]}  d5 {[%clk 0:02:54]} 2. Bb2 {[%clk 0:03:00]}  c6 {[%clk 0:02:55]} 3. e3 {[%clk 0:02:57]}  Bf5 {[%clk 0:02:54]} 4. g3 {[%clk 0:02:53]}  e6 {[%clk 0:02:54]} 5. Bg2 {[%clk 0:02:54]}  Nd7 {[%clk 0:02:54]} 6. d3 {[%clk 0:02:54]}  Ngf6 {[%clk 0:02:53]} 7. Ne2 {[%clk 0:02:54]}  Bd6 {[%clk 0:02:53]} 8. O-O {[%clk 0:02:54]}  Qe7 {[%clk 0:02:54]} 9. Nd2 {[%clk 0:02:54]}  Ba3 {[%clk 0:02:53]} 10. Qc1 {[%clk 0:02:53]}  Bxb2 {[%clk 0:02:53]} 11. Qxb2 {[%clk 0:02:54]}  O-O {[%clk 0:02:53]} 12. b4 {[%clk 0:01:57]}  h6 {[%clk 0:02:44]} 13. a3 {[%clk 0:01:51]}  Rfe8 {[%clk 0:02:41]} 14. Nb3 {[%clk 0:01:47]}  e5 {[%clk 0:02:35]} 15. Na5 {[%clk 0:01:43]}  Rab8 {[%clk 0:02:33]} 16. Rac1 {[%clk 0:01:29]}  Qd6 {[%clk 0:02:19]} 17. Rfd1 {[%clk 0:01:27]}  b6 {[%clk 0:02:18]} 18. Nb3 {[%clk 0:01:26]}  Bg4 {[%clk 0:02:11]} 19. Rd2 {[%clk 0:01:19]}  Nf8 {[%clk 0:02:05]} 20. c4 {[%clk 0:01:11]}  Qd7 {[%clk 0:01:52]} 21. cxd5 {[%clk 0:01:07]}  cxd5 {[%clk 0:01:51]} 22. Rdc2 {[%clk 0:01:06]}  Bf5 {[%clk 0:01:48]} 23. Rc7 {[%clk 0:00:57]}  Qd6 {[%clk 0:01:46]} 24. d4 {[%clk 0:00:49]}  a5 {[%clk 0:01:36]} 25. R1c6 {[%clk 0:00:43]}  Qd8 {[%clk 0:01:35]} 26. dxe5 {[%clk 0:00:43]}  Ne4 {[%clk 0:01:33]} 27. Nbd4 {[%clk 0:00:32]}  Bd7 {[%clk 0:01:23]} 28. Rc1 {[%clk 0:00:26]}  axb4 {[%clk 0:01:23]} 29. axb4 {[%clk 0:00:26]}  Rxe5 {[%clk 0:01:14]} 30. Rxd7 {[%clk 0:00:16]}  Qxd7 {[%clk 0:00:59]} 31. Nc6 {[%clk 0:00:17]}  Ree8 {[%clk 0:00:59]} 32. Nxb8 {[%clk 0:00:18]}  Rxb8 {[%clk 0:01:00]} 33. Rd1 {[%clk 0:00:16]}  Nf6 {[%clk 0:00:55]} 34. Nf4 {[%clk 0:00:15]}  Rd8 {[%clk 0:00:29]} 35. Nxd5 {[%clk 0:00:15]}  Nxd5 {[%clk 0:00:29]} 36. Rxd5 {[%clk 0:00:16]}  Qe7 {[%clk 0:00:29]} 37. Rxd8 {[%clk 0:00:17]}  Qxd8 {[%clk 0:00:30]} 38. Qd4 {[%clk 0:00:17]}  Qxd4 {[%clk 0:00:28]} 39. exd4 {[%clk 0:00:18]}  Nd7 {[%clk 0:00:23]} 40. Bc6 {[%clk 0:00:17]}  Nf6 {[%clk 0:00:19]} 41. Kf1 {[%clk 0:00:16]}  Kf8 {[%clk 0:00:19]} 42. Ke2 {[%clk 0:00:16]}  Ke7 {[%clk 0:00:20]} 43. h3 {[%clk 0:00:16]}  Kd6 {[%clk 0:00:21]} 44. Bf3 {[%clk 0:00:15]}  Ne8 {[%clk 0:00:19]} 45. Kd3 {[%clk 0:00:15]}  Nc7 {[%clk 0:00:19]} 46. Kc4 {[%clk 0:00:15]}  f6 {[%clk 0:00:20]} 47. h4 {[%clk 0:00:15]}  Ke7 {[%clk 0:00:20]} 48. Bd5 {[%clk 0:00:14]}  Kd6 {[%clk 0:00:20]} 49. Bf7 {[%clk 0:00:14]}  Ke7 {[%clk 0:00:20]} 50. Bd5 {[%clk 0:00:14]}  Kd6 {[%clk 0:00:21]} 51. Be4 {[%clk 0:00:14]}  Ke7 {[%clk 0:00:20]} 52. f4 {[%clk 0:00:14]}  Kd6 {[%clk 0:00:20]} 53. g4 {[%clk 0:00:14]}  g5 {[%clk 0:00:20]} 54. fxg5 {[%clk 0:00:13]}  fxg5 {[%clk 0:00:20]} 55. h5 {[%clk 0:00:14]}  Ke7 {[%clk 0:00:19]} 56. Bd5 {[%clk 0:00:13]}  Kd6 {[%clk 0:00:19]} 57. Be4 {[%clk 0:00:13]}  Ke7 {[%clk 0:00:19]} 58. Bf5 {[%clk 0:00:14]}  Kd6 {[%clk 0:00:19]} 59. Be4 {[%clk 0:00:14]} 1/2-1/2


[Site "https://www.chess.com"]

[Event "Titled Tuesday Blitz April 19 Late 2022"]
[White "Jaracz, Pawel"]
[Black "Ronka, Erik"]
[WhiteFideId "1102222"]
[BlackFideId "505080"]
[WhiteElo "2429"]
[BlackElo "2264"]
[Result "1-0"]
[Round "05"]
[TimeControl "180+1"]
[Date "2022.04.19"]
[WhiteClock "0:02:30"]
[BlackClock "0:02:11"]

1. d4 {[%clk 0:03:00]}  Nf6 {[%clk 0:02:55]} 2. c4 {[%clk 0:02:59]}  e6 {[%clk 0:02:56]} 3. Nf3 {[%clk 0:02:57]}  b6 {[%clk 0:02:55]} 4. a3 {[%clk 0:02:54]}  Bb7 {[%clk 0:02:53]} 5. Nc3 {[%clk 0:02:54]}  d5 {[%clk 0:02:52]} 6. Bg5 {[%clk 0:02:54]}  Be7 {[%clk 0:02:48]} 7. Bxf6 {[%clk 0:02:54]}  Bxf6 {[%clk 0:02:48]} 8. cxd5 {[%clk 0:02:55]}  exd5 {[%clk 0:02:49]} 9. Qa4+ {[%clk 0:02:54]}  c6 {[%clk 0:02:46]} 10. g3 {[%clk 0:02:54]}  O-O {[%clk 0:02:46]} 11. Bh3 {[%clk 0:02:53]}  Re8 {[%clk 0:02:39]} 12. O-O {[%clk 0:02:52]}  Qd6 {[%clk 0:02:38]} 13. Rfe1 {[%clk 0:02:50]}  Na6 {[%clk 0:02:30]} 14. Rad1 {[%clk 0:02:48]}  Nc7 {[%clk 0:02:23]} 15. Qc2 {[%clk 0:02:37]}  g6 {[%clk 0:02:16]} 16. e4 {[%clk 0:02:31]}  Be5 {[%clk 0:02:11]} 17. dxe5 {[%clk 0:02:30]} 1-0


[Site "https://www.chess.com"]

[Event "Titled Tuesday Blitz April 19 Late 2022"]
[White "Kanyamarala, Trisha"]
[Black "Demchenko, Anton"]
[WhiteFideId "45004722"]
[BlackFideId "4160258"]
[WhiteElo "2079"]
[BlackElo "2539"]
[Result "0-1"]
[Round "05"]
[TimeControl "180+1"]
[Date "2022.04.19"]
[WhiteClock "0:00:22"]
[BlackClock "0:01:07"]

1. d4 {[%clk 0:02:56]}  Nf6 {[%clk 0:02:59]} 2. c4 {[%clk 0:02:57]}  d6 {[%clk 0:02:59]} 3. Nc3 {[%clk 0:02:57]}  e5 {[%clk 0:02:59]} 4. Nf3 {[%clk 0:02:53]}  Nc6 {[%clk 0:02:59]} 5. dxe5 {[%clk 0:02:50]}  dxe5 {[%clk 0:02:59]} 6. Qxd8+ {[%clk 0:02:50]}  Kxd8 {[%clk 0:03:00]} 7. Bg5 {[%clk 0:02:48]}  Be6 {[%clk 0:03:00]} 8. O-O-O+ {[%clk 0:02:46]}  Kc8 {[%clk 0:03:01]} 9. Nd5 {[%clk 0:02:43]}  Nd7 {[%clk 0:03:01]} 10. e3 {[%clk 0:02:31]}  f6 {[%clk 0:03:00]} 11. Bh4 {[%clk 0:02:30]}  a5 {[%clk 0:03:00]} 12. Bd3 {[%clk 0:02:27]}  Nb4 {[%clk 0:02:54]} 13. Nxb4 {[%clk 0:02:09]}  axb4 {[%clk 0:02:54]} 14. Kb1 {[%clk 0:02:09]}  Nc5 {[%clk 0:02:41]} 15. Bc2 {[%clk 0:01:58]}  Bxc4 {[%clk 0:02:00]} 16. Nxe5 {[%clk 0:01:50]}  Bxa2+ {[%clk 0:01:57]} 17. Kc1 {[%clk 0:01:46]}  Be6 {[%clk 0:01:46]} 18. Nd3 {[%clk 0:01:33]}  Nb3+ {[%clk 0:01:36]} 19. Bxb3 {[%clk 0:01:30]}  Bxb3 {[%clk 0:01:37]} 20. Rde1 {[%clk 0:01:30]}  Be7 {[%clk 0:01:32]} 21. Kd2 {[%clk 0:01:24]}  Rd8 {[%clk 0:01:33]} 22. Rc1 {[%clk 0:01:24]}  Ba4 {[%clk 0:01:24]} 23. Bg3 {[%clk 0:01:09]}  c6 {[%clk 0:01:23]} 24. Ke2 {[%clk 0:01:01]}  Bb5 {[%clk 0:01:22]} 25. Rhd1 {[%clk 0:01:01]}  Ra2 {[%clk 0:01:20]} 26. e4 {[%clk 0:00:36]}  Rxb2+ {[%clk 0:01:19]} 27. Ke3 {[%clk 0:00:33]}  Rb3 {[%clk 0:01:19]} 28. Ra1 {[%clk 0:00:24]}  Rdxd3+ {[%clk 0:01:17]} 29. Rxd3 {[%clk 0:00:24]}  Rxd3+ {[%clk 0:01:18]} 30. Kf4 {[%clk 0:00:24]}  Bd6+ {[%clk 0:01:09]} 31. Kf5 {[%clk 0:00:25]}  Bxg3 {[%clk 0:01:09]} 32. hxg3 {[%clk 0:00:23]}  b3 {[%clk 0:01:10]} 33. Ke6 {[%clk 0:00:22]}  Kc7 {[%clk 0:01:07]} 0-1


[Site "https://www.chess.com"]

[Event "Titled Tuesday Blitz April 19 Late 2022"]
[White "Karwowski, Kacper"]
[Black "Gatterer, Florian"]
[WhiteFideId "1126032"]
[BlackFideId "811688"]
[WhiteElo "2261"]
[BlackElo "2218"]
[Result "1/2-1/2"]
[Round "05"]
[TimeControl "180+1"]
[Date "2022.04.19"]
[WhiteClock "0:00:02"]
[BlackClock "0:00:09"]

1. e4 {[%clk 0:03:00]}  e5 {[%clk 0:02:56]} 2. Nf3 {[%clk 0:03:00]}  Nc6 {[%clk 0:02:54]} 3. Bc4 {[%clk 0:02:57]}  Bc5 {[%clk 0:02:53]} 4. d3 {[%clk 0:02:56]}  Nf6 {[%clk 0:02:52]} 5. O-O {[%clk 0:02:55]}  d6 {[%clk 0:02:51]} 6. c3 {[%clk 0:02:55]}  a5 {[%clk 0:02:50]} 7. a4 {[%clk 0:02:55]}  O-O {[%clk 0:02:46]} 8. Be3 {[%clk 0:02:55]}  Bxe3 {[%clk 0:02:36]} 9. fxe3 {[%clk 0:02:56]}  Be6 {[%clk 0:02:36]} 10. Nbd2 {[%clk 0:02:53]}  Bxc4 {[%clk 0:02:34]} 11. Nxc4 {[%clk 0:02:54]}  Re8 {[%clk 0:02:18]} 12. Qb3 {[%clk 0:02:53]}  d5 {[%clk 0:02:12]} 13. exd5 {[%clk 0:02:46]}  Qxd5 {[%clk 0:02:11]} 14. Rad1 {[%clk 0:02:21]}  e4 {[%clk 0:01:56]} 15. dxe4 {[%clk 0:02:02]}  Qxe4 {[%clk 0:01:55]} 16. Nd4 {[%clk 0:02:01]}  Nxd4 {[%clk 0:01:07]} 17. exd4 {[%clk 0:01:58]}  b6 {[%clk 0:01:01]} 18. Ne5 {[%clk 0:01:39]}  Qd5 {[%clk 0:00:59]} 19. Qc2 {[%clk 0:01:34]}  Qe4 {[%clk 0:00:56]} 20. Qxe4 {[%clk 0:01:21]}  Nxe4 {[%clk 0:00:55]} 21. Nxf7 {[%clk 0:01:08]}  c5 {[%clk 0:00:48]} 22. Ne5 {[%clk 0:01:01]}  cxd4 {[%clk 0:00:45]} 23. cxd4 {[%clk 0:01:01]}  Rac8 {[%clk 0:00:38]} 24. Rc1 {[%clk 0:00:54]}  h6 {[%clk 0:00:25]} 25. h3 {[%clk 0:00:46]}  Nd2 {[%clk 0:00:23]} 26. Rfd1 {[%clk 0:00:20]}  Rxc1 {[%clk 0:00:22]} 27. Rxc1 {[%clk 0:00:20]}  Nb3 {[%clk 0:00:23]} 28. Rc6 {[%clk 0:00:05]}  Nxd4 {[%clk 0:00:22]} 29. Rd6 {[%clk 0:00:03]}  Rxe5 {[%clk 0:00:20]} 30. Rxd4 {[%clk 0:00:04]}  Re2 {[%clk 0:00:20]} 31. b3 {[%clk 0:00:02]}  Re3 {[%clk 0:00:20]} 32. b4 {[%clk 0:00:02]}  Ra3 {[%clk 0:00:14]} 33. bxa5 {[%clk 0:00:02]}  bxa5 {[%clk 0:00:14]} 34. Rc4 {[%clk 0:00:02]}  Ra2 {[%clk 0:00:14]} 35. Kh2 {[%clk 0:00:02]}  Kh7 {[%clk 0:00:14]} 36. h4 {[%clk 0:00:02]}  h5 {[%clk 0:00:15]} 37. Kh3 {[%clk 0:00:02]}  g6 {[%clk 0:00:15]} 38. g3 {[%clk 0:00:03]}  Ra3 {[%clk 0:00:15]} 39. Rf4 {[%clk 0:00:03]}  Kh6 {[%clk 0:00:14]} 40. Kg2 {[%clk 0:00:04]}  Rb3 {[%clk 0:00:12]} 41. Kh3 {[%clk 0:00:04]}  Rb4 {[%clk 0:00:12]} 42. Kg2 {[%clk 0:00:04]}  Rxf4 {[%clk 0:00:11]} 43. gxf4 {[%clk 0:00:05]}  Kg7 {[%clk 0:00:12]} 44. Kf2 {[%clk 0:00:03]}  Kf6 {[%clk 0:00:11]} 45. Ke2 {[%clk 0:00:02]}  Ke6 {[%clk 0:00:10]} 46. Kd2 {[%clk 0:00:01]}  Kd5 {[%clk 0:00:08]} 47. Kd3 {[%clk 0:00:01]}  Kc5 {[%clk 0:00:08]} 48. Kc3 {[%clk 0:00:01]}  Kd5 {[%clk 0:00:08]} 49. Kd3 {[%clk 0:00:01]}  Kc5 {[%clk 0:00:09]} 50. Kc3 {[%clk 0:00:02]}  Kd5 {[%clk 0:00:09]} 51. Kd3 {[%clk 0:00:02]} 1/2-1/2


[Site "https://www.chess.com"]

[Event "Titled Tuesday Blitz April 19 Late 2022"]
[White "Khripachenko, Alexander"]
[Black "Saldano Dayer, Horacio"]
[WhiteFideId "54184975"]
[BlackFideId "103411"]
[WhiteElo "2193"]
[BlackElo "2419"]
[Result "0-1"]
[Round "05"]
[TimeControl "180+1"]
[Date "2022.04.19"]
[WhiteClock "0:00:55"]
[BlackClock "0:00:48"]

1. e4 {[%clk 0:03:00]}  d6 {[%clk 0:02:59]} 2. d4 {[%clk 0:03:00]}  Nf6 {[%clk 0:03:00]} 3. Nc3 {[%clk 0:03:00]}  e5 {[%clk 0:03:00]} 4. Nf3 {[%clk 0:03:00]}  Nbd7 {[%clk 0:03:00]} 5. Bc4 {[%clk 0:03:01]}  Be7 {[%clk 0:03:00]} 6. O-O {[%clk 0:03:01]}  Nb6 {[%clk 0:03:00]} 7. Bb3 {[%clk 0:03:01]}  exd4 {[%clk 0:03:00]} 8. Nxd4 {[%clk 0:03:01]}  O-O {[%clk 0:02:59]} 9. a3 {[%clk 0:02:57]}  a5 {[%clk 0:02:56]} 10. Re1 {[%clk 0:02:55]}  Re8 {[%clk 0:02:56]} 11. Bg5 {[%clk 0:02:55]}  h6 {[%clk 0:02:55]} 12. Bh4 {[%clk 0:02:55]}  c6 {[%clk 0:02:40]} 13. Qf3 {[%clk 0:02:48]}  a4 {[%clk 0:02:08]} 14. Ba2 {[%clk 0:02:43]}  Ra5 {[%clk 0:02:07]} 15. h3 {[%clk 0:02:35]}  g5 {[%clk 0:01:59]} 16. Bg3 {[%clk 0:02:34]}  g4 {[%clk 0:02:00]} 17. hxg4 {[%clk 0:02:34]}  Bxg4 {[%clk 0:02:00]} 18. Qd3 {[%clk 0:02:34]}  Rh5 {[%clk 0:01:54]} 19. f3 {[%clk 0:02:31]}  Bc8 {[%clk 0:01:53]} 20. Rad1 {[%clk 0:02:28]}  Rg5 {[%clk 0:01:39]} 21. Bf4 {[%clk 0:02:27]}  Rg7 {[%clk 0:01:32]} 22. Bxh6 {[%clk 0:02:14]}  Rg6 {[%clk 0:01:32]} 23. Bf4 {[%clk 0:02:13]}  Nh5 {[%clk 0:01:31]} 24. Bh2 {[%clk 0:02:12]}  Bh4 {[%clk 0:01:29]} 25. e5 {[%clk 0:02:00]}  d5 {[%clk 0:01:28]} 26. f4 {[%clk 0:01:36]}  Bg3 {[%clk 0:01:20]} 27. Nce2 {[%clk 0:01:30]}  Bxh2+ {[%clk 0:01:17]} 28. Kxh2 {[%clk 0:01:31]}  Qh4+ {[%clk 0:01:17]} 29. Kg1 {[%clk 0:01:31]}  Nxf4 {[%clk 0:01:17]} 30. Nxf4 {[%clk 0:01:30]}  Qxf4 {[%clk 0:01:18]} 31. Nf3 {[%clk 0:01:20]}  Bg4 {[%clk 0:01:13]} 32. Rf1 {[%clk 0:01:15]}  Bxf3 {[%clk 0:01:08]} 33. Rxf3 {[%clk 0:01:16]}  Qxe5 {[%clk 0:01:08]} 34. Rdf1 {[%clk 0:01:15]}  Re7 {[%clk 0:01:06]} 35. c3 {[%clk 0:01:08]}  Qg5 {[%clk 0:01:04]} 36. R3f2 {[%clk 0:01:00]}  Re3 {[%clk 0:01:00]} 37. Qd4 {[%clk 0:00:59]}  Rg3 {[%clk 0:00:58]} 38. Qd2 {[%clk 0:00:55]}  Rxg2+ {[%clk 0:00:48]} 0-1


[Site "https://www.chess.com"]